fUSD/lending_fUSD_20251102
["ID","MTS","AMOUNT","RATE_DAILY","PERIOD"]
[392871633,1762096234678,-500.0,0.00014999,2]
[392871634,1762096234688,-500.0,0.00014999,2]
[392871635,1762096234697,-500.0,0.00014999,2]
[392871636,1762096234706,-500.0,0.00014999,2]
[392871637,1762096234715,-500.0,0.00014999,2]
[392871638,1762096234724,-500.0,0.00014999,2]
[392871639,1762096234733,-500.0,0.00014999,2]
[392871640,1762096234743,-500.0,0.00014999,2]
[392871641,1762096234752,-500.0,0.00014999,2]
[392871642,1762096234761,-500.0,0.00014999,2]
[392871643,1762096234772,-500.0,0.00014999,2]
[392871644,1762096234781,-500.0,0.00014999,2]
[392871645,1762096234791,-500.0,0.00014999,2]
[392871646,1762096234800,-500.0,0.00014999,2]
[392871647,1762096234811,-500.0,0.00014999,2]
[392871648,1762096234820,-500.0,0.00014999,2]
[392871649,1762096234829,-500.0,0.00014999,2]
[392871650,1762096234840,-500.0,0.00014999,2]
[392871651,1762096234849,-500.0,0.00014999,2]
[392871652,1762096234858,-500.0,0.00014999,2]
[392871653,1762096234867,-215.47320286,0.00014999,2]
[392871654,1762096234876,-500.0,0.00014999,2]
[392871655,1762096234885,-505.64838895,0.00014999,2]
[392871656,1762096234896,-200.0,0.00014999,2]
[392871657,1762096234906,-200.0,0.00014999,2]
[392871658,1762096234915,-150.0,0.00014999,2]
[392871659,1762096234926,-500.0,0.00014999,2]
[392871660,1762096234936,-150.0,0.00014999,2]
[392871661,1762096234946,-150.0,0.00014999,2]
[392871662,1762096234955,-223.76888488,0.00014999,2]
[392871663,1762096234965,-152.49763088,0.00014999,2]
[392871664,1762096234974,-593.0,0.00014999,2]
[392871665,1762096234984,-150.0,0.00014999,2]
[392871666,1762096234994,-150.0,0.00014999,2]
[392871667,1762096235004,-150.0,0.00014999,2]
[392871668,1762096235014,-150.0,0.00014999,2]
[392871669,1762096235023,-1016.84,0.00014999,2]
[392871670,1762096235032,-500.0,0.00014999,2]
[392871671,1762096235042,-500.0,0.00014999,2]
[392871672,1762096235051,-500.0,0.00014999,2]
[392871673,1762096235060,-440.4385336,0.00014999,2]
[392871674,1762096235070,-150.0,0.00014999,2]
[392871675,1762096235080,-150.0,0.00014999,2]
[392871676,1762096235089,-712.0,0.00015,2]
[392871677,1762096235099,-23747.77145704,0.00015,2]
[392871678,1762096235111,-185813.16737818,0.00015,2]
[392871679,1762096235147,-150.0,0.00014999,2]
[392871680,1762096235156,-11122.53640001,0.00015,2]
[392871681,1762096235167,-1621.73849155,0.00015,2]
[392871686,1762096238335,-584.961,0.00014969,2]
[392871687,1762096238345,-150.0,0.00014999,2]
[392871688,1762096238355,-21140.83111154,0.00015,2]
[392871689,1762096238368,-5980.61549521,0.00015,2]
[392871690,1762096238379,-2933.26881618,0.00015,2]
[392871691,1762096238424,-150.0,0.00014999,2]
[392871692,1762096238434,-3940.4385336,0.00015,2]
[392871693,1762096238448,-8355.461751,0.00015,2]
[392871694,1762096238463,-5401.9262761,0.00015,2]
[392871695,1762096238556,-4953.74417938,0.00015,2]
[392871699,1762096240838,-51439.46156703,0.00015,2]
[392871700,1762096240851,-5091.78762921,0.00015,2]
[392871705,1762096243416,-365.20479529,0.00015,2]
[392871706,1762096243430,-236751.85838498,0.00015,2]
[392871707,1762096243443,-2988.85717266,0.00015,2]
[392871708,1762096243609,-413.40361817,0.00015,2]
[392871709,1762096244361,-3989.08274409,0.00015,2]
[392871710,1762096244838,-199548.48515964,0.00015,2]
[392871711,1762096244848,-500.0,0.00015,2]
[392871712,1762096244857,-150421.1954957,0.00015,2]
[392871713,1762096246618,-368.82,0.00015,2]
[392871765,1762096308843,2500.0,0.00014463,3]
[392871773,1762096345255,181.750336,0.00014999,8]
[392871774,1762096350675,155.263093,0.00014999,8]
[392871775,1762096351042,155.263093,0.00014999,8]
[392871777,1762096361008,151.872832,0.00014999,8]
[392871778,1762096373280,157.200502,0.00014999,8]
[392871779,1762096373629,157.200502,0.00014999,8]
[392871781,1762096398641,362.58,0.00014274,2]
[392871783,1762096404112,500.0,0.00014621,2]
[392871784,1762096451404,200.0,0.00014144,2]
[392871786,1762096467422,999.0,0.00014144,3]
[392871789,1762096495848,2585.0,0.00015,3]
[392871793,1762096516079,3946.0,0.00014596,2]
[392871794,1762096526929,3946.0,0.0001466,2]
[392871795,1762096543979,152.0,0.00014415,3]
[392871845,1762096691943,22904.75,0.00014042,2]
[392871846,1762096830871,17721.07,0.00014147,2]
[392871847,1762096888391,1673.62,0.00014042,2]
[392871856,1762097030141,1598.72390794,0.00014599,2]
[392871860,1762097059229,271.941,0.00014599,2]
[392871865,1762097111849,150.0,0.00013488,2]
[392871866,1762097111900,150.0,0.00013488,2]
[392871867,1762097112985,150.0,0.00013488,2]
[392871868,1762097117854,150.0,0.00013488,2]
[392871869,1762097117949,150.0,0.00013488,2]
[392871870,1762097119041,150.0,0.00013488,2]
[392871871,1762097120673,150.0,0.00013488,2]
[392871872,1762097132070,150.0,0.00013488,2]
[392871873,1762097132233,150.0,0.00013787,2]
[392871874,1762097132299,150.0,0.00014087,2]
[392871875,1762097132364,150.0,0.00014387,2]
[392871876,1762097132491,150.0,0.00013488,2]
[392871877,1762097132566,150.0,0.00013488,2]
[392871900,1762097239313,250.0,0.00013984,2]
[392871907,1762097266428,166.67,0.00014456,2]
[392871912,1762097282362,733.43,0.0001348,2]
[392871920,1762097293527,733.43,0.0001348,2]
[392871922,1762097294996,7089.01,0.00013991,2]
[392871928,1762097310008,733.43,0.0001345,2]
[392871929,1762097315634,733.43,0.0001345,2]
[392871934,1762097318633,1992.71678854,0.00013699,2]
[392871959,1762097431745,-150.0,0.00014687,2]
[392871960,1762097431755,-197.0297442,0.00014689,2]
[392871961,1762097431765,-250.0,0.00014692,2]
[392871962,1762097431775,-289.60883895,0.00014698,2]
[392871963,1762097431798,-910.39116105,0.00014698,2]
[392871964,1762097431809,-187.56289428,0.00014699,2]
[392871965,1762097431819,-1041.45349145,0.00014699,2]
[392871966,1762097431831,-1137.41492696,0.00014699,2]
[392871967,1762097431841,-187.56289428,0.00014713,2]
[392871968,1762097431851,-326.0,0.00014713,2]
[392871969,1762097431861,-300.0,0.00014849,2]
[392871970,1762097431871,-300.0,0.00014849,2]
[392871971,1762097431883,-300.0,0.00014849,2]
[392871972,1762097431894,-1083.53009,0.0001485,2]
[392871973,1762097431904,-3946.0,0.00014874,2]
[392871974,1762097431914,-200.0,0.0001488,2]
[392871975,1762097431924,-150.0,0.00014899,2]
[392871976,1762097431933,-11967.8524,0.000149,2]
[392871977,1762097431943,-544.1471,0.000149,2]
[392871978,1762097431953,-166.59643671,0.000149,2]
[392871980,1762097431962,-6413.993,0.000149,2]
[392871982,1762097431972,-725.838,0.000149,2]
[392871984,1762097431982,-735.7317324,0.000149,2]
[392871986,1762097431991,-177.98738148,0.000149,2]
[392871988,1762097432000,-468.10359614,0.000149,2]
[392871990,1762097432010,-375.91087112,0.000149,2]
[392871992,1762097432019,-1000.0,0.000149,2]
[392871994,1762097432033,-477.45087779,0.00014957,2]
[392871996,1762097432042,-168.0,0.00014958,2]
[392871998,1762097432051,-500.0,0.00014973,2]
[392872000,1762097432061,-500.0,0.00014973,2]
[392872038,1762097432442,-500.0,0.00014973,2]
[392872039,1762097432452,-500.0,0.00014973,2]
[392872040,1762097432462,-500.0,0.00014973,2]
[392872041,1762097432472,-500.0,0.00014973,2]
[392872042,1762097432481,-500.0,0.00014973,2]
[392872043,1762097432491,-500.0,0.00014973,2]
[392872044,1762097432506,-542.320165,0.00014973,2]
[392872045,1762097432517,-161.80681393,0.00014973,2]
[392872046,1762097432529,-500.0,0.00014973,2]
[392872047,1762097432539,-500.0,0.00014973,2]
[392872048,1762097432550,-500.0,0.00014973,2]
[392872049,1762097432560,-500.0,0.00014973,2]
[392872050,1762097432570,-500.0,0.00014973,2]
[392872051,1762097432579,-1083.5301,0.0001498,2]
[392872052,1762097432589,-150.0,0.00014986,2]
[392872053,1762097432599,-150.0,0.00014986,2]
[392872054,1762097432609,-150.0,0.00014986,2]
[392872055,1762097432618,-150.0,0.00014986,2]
[392872056,1762097432627,-151.0,0.00014991,2]
[392872057,1762097432637,-151.0,0.00014991,2]
[392872058,1762097432646,-151.0,0.00014991,2]
[392872059,1762097432656,-151.0,0.00014991,2]
[392872060,1762097432666,-151.0,0.00014991,2]
[392872061,1762097432675,-151.0,0.00014991,2]
[392872062,1762097432684,-151.0,0.00014991,2]
[392872063,1762097432694,-151.0,0.00014991,2]
[392872064,1762097432703,-496.47127164,0.00014991,2]
[392872065,1762097432712,-151.0,0.00014991,2]
[392872066,1762097432721,-151.0,0.00014991,2]
[392872067,1762097432730,-151.0,0.00014991,2]
[392872068,1762097432740,-151.0,0.00014991,2]
[392872069,1762097432749,-151.0,0.00014991,2]
[392872070,1762097432759,-151.0,0.00014991,2]
[392872071,1762097432768,-151.0,0.00014991,2]
[392872072,1762097432778,-151.0,0.00014991,2]
[392872073,1762097432787,-151.0,0.00014991,2]
[392872074,1762097432796,-151.0,0.00014991,2]
[392872075,1762097432805,-151.0,0.00014991,2]
[392872076,1762097432815,-151.0,0.00014991,2]
[392872077,1762097432824,-151.0,0.00014991,2]
[392872078,1762097432833,-151.0,0.00014991,2]
[392872079,1762097432843,-151.0,0.00014991,2]
[392872080,1762097432852,-151.0,0.00014991,2]
[392872081,1762097432861,-151.0,0.00014991,2]
[392872082,1762097432871,-151.0,0.00014991,2]
[392872083,1762097432880,-151.0,0.00014991,2]
[392872084,1762097432889,-151.0,0.00014991,2]
[392872085,1762097432908,-151.0,0.00014991,2]
[392872086,1762097432918,-151.0,0.00014991,2]
[392872087,1762097432928,-151.0,0.00014991,2]
[392872088,1762097432937,-151.0,0.00014991,2]
[392872089,1762097432946,-151.0,0.00014991,2]
[392872090,1762097432956,-151.0,0.00014991,2]
[392872091,1762097432966,-151.0,0.00014997,2]
[392872092,1762097432976,-500.0,0.00014999,2]
[392872093,1762097432987,-500.0,0.00014999,2]
[392872094,1762097432996,-500.0,0.00014999,2]
[392872095,1762097433006,-500.0,0.00014999,2]
[392872096,1762097433016,-500.0,0.00014999,2]
[392872097,1762097433025,-500.0,0.00014999,2]
[392872098,1762097433035,-500.0,0.00014999,2]
[392872099,1762097433044,-175.53528968,0.00014999,2]
[392872100,1762097433054,-500.0,0.00014999,2]
[392872101,1762097433063,-500.0,0.00014999,2]
[392872102,1762097433073,-500.0,0.00014999,2]
[392872103,1762097433083,-500.0,0.00014999,2]
[392872104,1762097433096,-500.0,0.00014999,2]
[392872105,1762097433106,-500.0,0.00014999,2]
[392872106,1762097433116,-275.75225965,0.00014999,2]
[392872107,1762097433131,-626.08232765,0.00014999,2]
[392872108,1762097433142,-519.19897658,0.00014999,2]
[392872109,1762097433152,-500.0,0.00014999,2]
[392872110,1762097433162,-150.0,0.00014999,2]
[392872111,1762097433172,-150.0,0.00014999,2]
[392872112,1762097433181,-150.0,0.00014999,2]
[392872113,1762097433191,-154.44839244,0.00014999,2]
[392872114,1762097433200,-150.0,0.00014999,2]
[392872115,1762097433210,-1125.48,0.00014999,2]
[392872116,1762097433221,-595.0,0.00014999,2]
[392872117,1762097433231,-200.0,0.00014999,2]
[392872118,1762097433241,-150.0,0.00014999,2]
[392872119,1762097433250,-150.0,0.00014999,2]
[392872120,1762097433260,-575.48368105,0.00014999,2]
[392872121,1762097433270,-500.0,0.00014999,2]
[392872122,1762097433280,-500.0,0.00014999,2]
[392872123,1762097433291,-150.0,0.00014999,2]
[392872124,1762097433300,-200.0,0.00014999,2]
[392872125,1762097433310,-150.0,0.00014999,2]
[392872126,1762097433320,-500.0,0.00014999,2]
[392872127,1762097433330,-150.0,0.00014999,2]
[392872128,1762097433340,-200.0,0.00014999,2]
[392872129,1762097433350,-500.0,0.00014999,2]
[392872130,1762097433361,-500.0,0.00014999,2]
[392872131,1762097433371,-360.01974154,0.00014999,2]
[392872132,1762097433380,-150.0,0.00014999,2]
[392872133,1762097433390,-500.0,0.00014999,2]
[392872134,1762097433399,-566.0,0.00015,2]
[392872135,1762097433409,-256577.07019423,0.00015,2]
[392872136,1762097437431,-10204.80026232,0.00015,2]
[392872137,1762097437454,-540.01220046,0.00015,2]
[392872138,1762097437628,-20266.5663489,0.00015,2]
[392872139,1762097437648,-18937.21395323,0.00015,2]
[392872140,1762097437659,-4031.50869685,0.00015,2]
[392872149,1762097439619,-1319.63768397,0.00015,2]
[392872150,1762097439631,-14982.98171538,0.00015,2]
[392872152,1762097439642,-1106.2219186,0.00015,2]
[392872153,1762097439653,-1003.73583634,0.00015,2]
[392872154,1762097439724,-570.0,0.00014999,2]
[392872155,1762097439733,-10900.0,0.00015,2]
[392872156,1762097439823,-200078.66278649,0.00015,2]
[392872157,1762097439845,-446.94433006,0.00015,2]
[392872158,1762097439866,-957.97619705,0.00015,2]
[392872167,1762097442663,-872.26117996,0.00015,2]
[392872168,1762097442686,-306259.09254465,0.00015,2]
[392872169,1762097442762,-194703.09047309,0.00015,2]
[392872170,1762097442962,-504.76426199,0.00015,2]
[392872171,1762097442980,-38198.90586287,0.00015,2]
[392872172,1762097442996,-467.5619357,0.00015,2]
[392872179,1762097445586,-1203.605075,0.00015,2]
[392872180,1762097445599,-388.61022709,0.00015,2]
[392872181,1762097445734,-6714.98335691,0.00015,2]
[392872182,1762097445831,-739.23,0.00015,2]
[392872183,1762097445860,-10870.9275252,0.00015,2]
[392872191,1762097515630,1000.0,0.00014299,2]
[392872192,1762097522476,3335.49,0.00014303,2]
[392872193,1762097605970,200.0,0.00014094,2]
[392872196,1762097662477,500.0,0.00014082,3]
[392872205,1762097748325,2837.54,0.00014053,2]
[392872206,1762097802569,872.16,0.00014045,2]
[392872209,1762097905719,155.82197378,0.00013236,7]
[392872210,1762097946757,-1698.0,0.00017012,120]
[392872211,1762097946823,-191.0,0.0001836,120]
[392872212,1762097946917,-160.0,0.0002,120]
[392872213,1762097947001,-323.809067,0.00025999,120]
[392872214,1762097947074,-281.92404912,0.00029,120]
[392872215,1762097947138,-300.0,0.0003,120]
[392872216,1762097947199,-2027.7281004,0.0003,120]
[392872217,1762097947259,-10000.0,0.00030137,120]
[392872218,1762097968429,177.46,0.00011234,2]
[392872219,1762098003334,160.0,0.0002,120]
[392872220,1762098022152,150.0,0.00015,120]
[392872222,1762098032123,793.63717916,0.00015,3]
[392872223,1762098032190,1512.0,0.0003013,120]
[392872224,1762098032568,1048.51040489,0.0003013,120]
[392872225,1762098033689,1000.0,0.00013699,2]
[392872226,1762098035269,258.06958544,0.0003013,120]
[392872229,1762098048785,150.5,0.0002609,120]
[392872230,1762098048997,150.5,0.0002608,120]
[392872231,1762098049463,150.5,0.0002607,120]
[392872232,1762098049901,225.59,0.0002909,120]
[392872252,1762098086081,2000.0,0.0003013,120]
[392872253,1762098086142,1500.0,0.0003013,120]
[392872254,1762098089383,2000.0,0.0003013,120]
[392872272,1762098100212,2000.0,0.0003013,120]
[392872273,1762098100283,2000.0,0.0003013,120]
[392872274,1762098103882,2000.0,0.0003013,120]
[392872275,1762098114362,2000.0,0.0003013,120]
[392872276,1762098114451,2000.0,0.0003013,120]
[392872277,1762098115678,178.0,0.00014427,2]
[392872278,1762098117604,2000.0,0.0003013,120]
[392872279,1762098119031,178.0,0.00014455,2]
[392872280,1762098129880,2000.0,0.0003013,120]
[392872281,1762098130456,2000.0,0.0003013,120]
[392872282,1762098131492,150.0,0.00014005,2]
[392872283,1762098131567,2000.0,0.0003013,120]
[392872284,1762098143435,2000.0,0.0003013,120]
[392872285,1762098145113,2000.0,0.0003013,120]
[392872287,1762098148894,5197.616901,0.00014615,2]
[392872288,1762098157220,2000.0,0.0003013,120]
[392872289,1762098159641,2000.0,0.0003013,120]
[392872291,1762098172057,2000.0,0.0003013,120]
[392872293,1762098185554,2000.0,0.0003013,120]
[392872295,1762098195792,1257.53,0.0001401,2]
[392872296,1762098200367,2000.0,0.0003013,120]
[392872298,1762098202269,500.0,0.00027944,120]
[392872299,1762098202368,500.0,0.00030136,120]
[392872300,1762098213926,150.0,0.00015,120]
[392872301,1762098214128,2000.0,0.0003013,120]
[392872302,1762098228673,2000.0,0.0003013,120]
[392872303,1762098242583,2000.0,0.0003013,120]
[392872304,1762098257278,2000.0,0.0003013,120]
[392872305,1762098260083,221.66766337,0.00014542,2]
[392872306,1762098261756,667.77455546,0.00014676,2]
[392872308,1762098271103,745.95491169,0.0003013,120]
[392872309,1762098320071,150.0,0.00013488,2]
[392872310,1762098320153,150.0,0.00013987,2]
[392872311,1762098320226,150.0,0.00014487,2]
[392872312,1762098325493,150.0,0.00013488,2]
[392872313,1762098332127,268.1496886,0.00013488,2]
[392872314,1762098334844,150.0,0.00013488,2]
[392872324,1762098399239,353.84,0.00013979,2]
[392872325,1762098408593,150.0,0.00015,120]
[392872326,1762098426096,172.38685122,0.00014678,2]
[392872327,1762098432171,525.42628282,0.0003013,120]
[392872328,1762098502873,2101.28,0.00013971,2]
[392872329,1762098523465,341.0,0.00014418,2]
[392872330,1762098539788,341.0,0.00014652,2]
[392872331,1762098550203,200.57504424,0.0003013,120]
[392872332,1762098550506,341.0,0.00014622,2]
[392872335,1762098600347,150.0,0.00015,120]
[392872366,1762098631743,-341.0,0.00014718,2]
[392872369,1762098631752,-250.0,0.00014756,2]
[392872372,1762098631762,-341.0,0.00014759,2]
[392872375,1762098631771,-325.65691688,0.00014778,2]
[392872383,1762098631811,-304.99314798,0.00014778,2]
[392872385,1762098631822,-794.34993514,0.00014778,2]
[392872387,1762098631832,-300.0,0.00014799,2]
[392872389,1762098631841,-1200.0,0.00014799,2]
[392872391,1762098631850,-417.7275,0.000148,2]
[392872393,1762098631860,-47605.0,0.000148,2]
[392872395,1762098631869,-341.0,0.00014849,2]
[392872397,1762098631879,-1083.53009,0.0001485,2]
[392872399,1762098631889,-1083.5301,0.0001485,2]
[392872401,1762098631898,-1358.70832,0.0001485,2]
[392872403,1762098631907,-5888.0,0.00014854,2]
[392872405,1762098631916,-1358.70833,0.0001486,2]
[392872407,1762098631925,-500.0,0.00014873,2]
[392872409,1762098631935,-510.93598988,0.00014873,2]
[392872411,1762098631945,-198.02912071,0.00014873,2]
[392872413,1762098631954,-504.75986535,0.00014873,2]
[392872414,1762098631963,-500.0,0.00014873,2]
[392872415,1762098631972,-500.0,0.00014873,2]
[392872439,1762098632241,-500.0,0.00014873,2]
[392872441,1762098632251,-602.15865985,0.00014873,2]
[392872443,1762098632260,-500.0,0.00014873,2]
[392872445,1762098632269,-500.0,0.00014879,2]
[392872447,1762098632278,-500.0,0.0001488,2]
[392872449,1762098632288,-500.0,0.0001488,2]
[392872451,1762098632297,-500.0,0.0001488,2]
[392872453,1762098632306,-150.0,0.0001489,2]
[392872455,1762098632315,-10112.11,0.0001489,2]
[392872457,1762098632324,-1739.8436711,0.0001489,2]
[392872458,1762098632333,-151.0,0.00014891,2]
[392872460,1762098632343,-151.0,0.00014891,2]
[392872463,1762098632353,-151.0,0.00014891,2]
[392872465,1762098632363,-151.0,0.00014891,2]
[392872467,1762098632372,-151.0,0.00014891,2]
[392872469,1762098632382,-496.47127164,0.00014891,2]
[392872471,1762098632391,-500.0,0.00014891,2]
[392872472,1762098632400,-151.0,0.00014891,2]
[392872475,1762098632410,-151.0,0.00014891,2]
[392872477,1762098632420,-151.0,0.00014891,2]
[392872479,1762098632429,-151.0,0.00014891,2]
[392872481,1762098632438,-151.0,0.00014891,2]
[392872482,1762098632447,-151.0,0.00014891,2]
[392872484,1762098632456,-151.0,0.00014891,2]
[392872486,1762098632465,-151.0,0.00014891,2]
[392872487,1762098632474,-151.0,0.00014891,2]
[392872488,1762098632484,-151.0,0.00014891,2]
[392872489,1762098632493,-151.0,0.00014891,2]
[392872490,1762098632502,-151.0,0.00014891,2]
[392872491,1762098632512,-151.0,0.00014891,2]
[392872492,1762098632522,-151.0,0.00014891,2]
[392872494,1762098632531,-151.0,0.00014891,2]
[392872496,1762098632541,-151.0,0.00014891,2]
[392872498,1762098632550,-151.0,0.00014891,2]
[392872500,1762098632559,-151.0,0.00014891,2]
[392872502,1762098632569,-151.0,0.00014891,2]
[392872504,1762098632583,-151.0,0.00014891,2]
[392872506,1762098632592,-151.0,0.00014891,2]
[392872508,1762098632601,-151.0,0.00014891,2]
[392872510,1762098632611,-151.0,0.00014891,2]
[392872512,1762098632620,-151.0,0.00014891,2]
[392872514,1762098632630,-151.0,0.00014891,2]
[392872516,1762098632639,-151.0,0.00014891,2]
[392872518,1762098632649,-268.42031496,0.00014899,2]
[392872520,1762098632657,-245.08999831,0.00014899,2]
[392872522,1762098632667,-500.0,0.00014899,2]
[392872524,1762098632676,-151.48453759,0.00014899,2]
[392872526,1762098632685,-500.0,0.00014899,2]
[392872528,1762098632694,-241.7261433,0.00014899,2]
[392872530,1762098632704,-175.71569235,0.00014899,2]
[392872532,1762098632713,-195.35545218,0.00014899,2]
[392872534,1762098632723,-193.02658175,0.00014899,2]
[392872536,1762098632732,-166.59643671,0.000149,2]
[392872538,1762098632742,-23609.08806262,0.000149,2]
[392872544,1762098632788,-8134.7431675,0.000149,2]
[392872548,1762098632822,-702.36835528,0.000149,2]
[392872552,1762098632850,-1371.57300474,0.000149,2]
[392872563,1762098638396,-27544.78537841,0.000149,2]
[392872564,1762098638407,-173736.96223145,0.000149,2]
[392872565,1762098638416,-500.0,0.000149,2]
[392872566,1762098638426,-312.0690641,0.000149,2]
[392872567,1762098638435,-572.95159432,0.000149,2]
[392872568,1762098638444,-580.671,0.00014918,2]
[392872569,1762098638454,-500.0,0.00014973,2]
[392872570,1762098638463,-215.18267808,0.00014973,2]
[392872571,1762098638473,-500.0,0.00014973,2]
[392872572,1762098638482,-508.80393106,0.00014973,2]
[392872573,1762098638492,-500.0,0.00014973,2]
[392872574,1762098638501,-500.0,0.00014973,2]
[392872575,1762098638511,-500.0,0.00014973,2]
[392872576,1762098638842,-199.20249056,0.00014973,2]
[392872577,1762098638852,-500.0,0.00014973,2]
[392872578,1762098638863,-202.93609342,0.00014973,2]
[392872579,1762098638872,-500.0,0.00014973,2]
[392872580,1762098638881,-500.0,0.00014973,2]
[392872581,1762098638891,-554.47041519,0.00014973,2]
[392872582,1762098638900,-500.0,0.00014973,2]
[392872583,1762098638910,-500.0,0.00014973,2]
[392872584,1762098638919,-500.0,0.00014973,2]
[392872585,1762098638929,-500.0,0.00014973,2]
[392872586,1762098638938,-162.29532918,0.00014973,2]
[392872587,1762098638947,-500.0,0.00014973,2]
[392872588,1762098638956,-321.53200453,0.00014973,2]
[392872589,1762098638965,-500.0,0.00014973,2]
[392872590,1762098638975,-500.0,0.00014973,2]
[392872591,1762098638984,-500.0,0.00014973,2]
[392872592,1762098638993,-500.0,0.00014973,2]
[392872593,1762098639003,-280.11131079,0.00014973,2]
[392872594,1762098639017,-500.0,0.00014973,2]
[392872595,1762098639026,-165.64512476,0.00014973,2]
[392872596,1762098639036,-502.97445239,0.00014973,2]
[392872597,1762098639045,-500.0,0.00014973,2]
[392872598,1762098639055,-150.0,0.00014986,2]
[392872599,1762098639064,-150.0,0.00014986,2]
[392872600,1762098639074,-196.82748984,0.0001499,2]
[392872601,1762098639084,-10112.11,0.0001499,2]
[392872602,1762098639094,-151.0,0.00014997,2]
[392872603,1762098639104,-500.0,0.00014999,2]
[392872604,1762098639113,-546.0,0.00014999,2]
[392872605,1762098639123,-150.0,0.00014999,2]
[392872606,1762098639132,-150.0,0.00014999,2]
[392872607,1762098639142,-150.0,0.00014999,2]
[392872608,1762098639151,-150.0,0.00014999,2]
[392872609,1762098639161,-150.0,0.00014999,2]
[392872610,1762098639170,-477.45087779,0.00014999,2]
[392872611,1762098639180,-494238.91584652,0.00015,2]
[392872612,1762098639189,-1500.0,0.00015,2]
[392872613,1762098639199,-1500.0,0.00015,2]
[392872614,1762098639209,-1500.0,0.00015,2]
[392872615,1762098639220,-966.15,0.00015,2]
[392872616,1762098639230,-215.3,0.00015,2]
[392872617,1762098639240,-215.3,0.00015,2]
[392872618,1762098639250,-215.3,0.00015,2]
[392872619,1762098639259,-1000.0,0.00015,2]
[392872620,1762098639270,-1000.0,0.00015,2]
[392872621,1762098639279,-1000.0,0.00015,2]
[392872622,1762098639289,-1000.0,0.00015,2]
[392872623,1762098639299,-1000.0,0.00015,2]
[392872624,1762098639309,-1000.0,0.00015,2]
[392872625,1762098639319,-1000.0,0.00015,2]
[392872626,1762098639328,-1000.0,0.00015,2]
[392872627,1762098639338,-1000.0,0.00015,2]
[392872628,1762098639348,-849.81039014,0.00015,2]
[392872629,1762098639358,-689.69449787,0.00015,2]
[392872630,1762098639367,-1000.0,0.00015,2]
[392872631,1762098639377,-1000.0,0.00015,2]
[392872632,1762098639387,-1000.0,0.00015,2]
[392872633,1762098639396,-1000.0,0.00015,2]
[392872634,1762098639410,-1000.0,0.00015,2]
[392872635,1762098639420,-1000.0,0.00015,2]
[392872636,1762098639430,-1000.0,0.00015,2]
[392872637,1762098639440,-1000.0,0.00015,2]
[392872638,1762098639450,-1000.0,0.00015,2]
[392872639,1762098639460,-1000.0,0.00015,2]
[392872640,1762098639471,-1000.0,0.00015,2]
[392872641,1762098639481,-1000.0,0.00015,2]